[Event "Titled Tuesday Blitz June 6 Early 2023"]
[White "Sychev, Klementy"]
[Black "Samunenkov, Ihor"]
[WhiteFideId "4114060"]
[BlackFideId "14187086"]
[WhiteElo "2583"]
[BlackElo "2457"]
[Result "1-0"]
[Round "11"]
[TimeControl "180+2"]
[Date "2023.06.06"]
[WhiteClock "0:00:07"]
[BlackClock "0:00:03"]
[Board "23"]

1. e4 {[%clk 0:03:00]}  c5 {[%clk 0:02:59]} 2. b4 {[%clk 0:02:58]}  cxb4 {[%clk 0:02:48]} 3. a3 {[%clk 0:02:58]}  bxa3 {[%clk 0:02:43]} 4. Bxa3 {[%clk 0:02:56]}  Nc6 {[%clk 0:02:39]} 5. d4 {[%clk 0:02:53]}  d5 {[%clk 0:02:36]} 6. Nc3 {[%clk 0:02:26]}  e6 {[%clk 0:02:00]} 7. Bxf8 {[%clk 0:02:24]}  Kxf8 {[%clk 0:02:00]} 8. Nf3 {[%clk 0:02:19]}  Nf6 {[%clk 0:01:55]} 9. Bd3 {[%clk 0:02:11]}  dxe4 {[%clk 0:01:43]} 10. Bxe4 {[%clk 0:01:37]}  Nxe4 {[%clk 0:01:23]} 11. Nxe4 {[%clk 0:01:38]}  Qd5 {[%clk 0:01:17]} 12. Nc3 {[%clk 0:01:36]}  Qc4 {[%clk 0:01:16]} 13. Qd2 {[%clk 0:01:36]}  b5 {[%clk 0:00:54]} 14. Ne2 {[%clk 0:01:28]}  Bb7 {[%clk 0:00:47]} 15. O-O {[%clk 0:01:26]}  Rd8 {[%clk 0:00:46]} 16. Rfd1 {[%clk 0:01:16]}  f6 {[%clk 0:00:39]} 17. Ng3 {[%clk 0:01:07]}  Kg8 {[%clk 0:00:27]} 18. h4 {[%clk 0:00:52]}  h6 {[%clk 0:00:25]} 19. Qf4 {[%clk 0:00:32]}  a6 {[%clk 0:00:17]} 20. Qc7 {[%clk 0:00:29]}  Ba8 {[%clk 0:00:10]} 21. Rxa6 {[%clk 0:00:23]}  Kh7 {[%clk 0:00:10]} 22. Nh5 {[%clk 0:00:20]}  Rhg8 {[%clk 0:00:02]} 23. Nxf6+ {[%clk 0:00:20]}  Kh8 {[%clk 0:00:02]} 24. Nxg8 {[%clk 0:00:20]}  Nxd4 {[%clk 0:00:01]} 25. Qxc4 {[%clk 0:00:07]}  Nxf3+ {[%clk 0:00:01]} 26. gxf3 {[%clk 0:00:07]}  Rxd1+ {[%clk 0:00:02]} 27. Kg2 {[%clk 0:00:07]}  bxc4 {[%clk 0:00:03]} 28. Rxa8 {[%clk 0:00:06]}  Kh7 {[%clk 0:00:02]} 29. Ne7 {[%clk 0:00:06]}  Rd2 {[%clk 0:00:03]} 30. h5 {[%clk 0:00:07]}  g5 {[%clk 0:00:02]} 31. hxg6+ {[%clk 0:00:07]}  Kg7 {[%clk 0:00:02]} 32. Ra6 {[%clk 0:00:07]}  Rxc2 {[%clk 0:00:02]} 33. Rxe6 {[%clk 0:00:07]}  c3 {[%clk 0:00:02]} 34. Nf5+ {[%clk 0:00:07]}  Kg8 {[%clk 0:00:03]} 35. Re8# {[%clk 0:00:07]} 1-0


[Site "https://www.chess.com"]

[Event "Titled Tuesday Blitz June 6 Early 2023"]
[White "Harutjunyan, Gevorg"]
[Black "De La Colina, Nicolas"]
[WhiteFideId "13300873"]
[BlackFideId "30946921"]
[WhiteElo "2474"]
[BlackElo "2046"]
[Result "1/2-1/2"]
[Round "11"]
[TimeControl "180+2"]
[Date "2023.06.06"]
[WhiteClock "0:00:17"]
[BlackClock "0:00:12"]
[Board "24"]

1. e4 {[%clk 0:03:00]}  c5 {[%clk 0:02:59]} 2. Nc3 {[%clk 0:03:00]}  Nc6 {[%clk 0:02:59]} 3. Bb5 {[%clk 0:03:00]}  Nd4 {[%clk 0:02:59]} 4. Bc4 {[%clk 0:03:00]}  e6 {[%clk 0:02:59]} 5. Nge2 {[%clk 0:03:01]}  Nf6 {[%clk 0:02:57]} 6. O-O {[%clk 0:03:01]}  a6 {[%clk 0:02:57]} 7. a4 {[%clk 0:03:01]}  d5 {[%clk 0:02:57]} 8. exd5 {[%clk 0:03:02]}  exd5 {[%clk 0:02:58]} 9. Ba2 {[%clk 0:03:03]}  Nc6 {[%clk 0:02:33]} 10. d3 {[%clk 0:03:00]}  Be7 {[%clk 0:02:01]} 11. Nf4 {[%clk 0:02:58]}  Nb4 {[%clk 0:01:57]} 12. Bb3 {[%clk 0:02:55]}  O-O {[%clk 0:01:56]} 13. Re1 {[%clk 0:02:53]}  Re8 {[%clk 0:01:55]} 14. Bd2 {[%clk 0:02:41]}  Bf5 {[%clk 0:01:49]} 15. a5 {[%clk 0:02:29]}  Rc8 {[%clk 0:01:39]} 16. h3 {[%clk 0:02:18]}  h6 {[%clk 0:01:38]} 17. Qf3 {[%clk 0:02:12]}  c4 {[%clk 0:01:24]} 18. Ba4 {[%clk 0:02:06]}  Bd7 {[%clk 0:01:24]} 19. Ncxd5 {[%clk 0:01:35]}  Nbxd5 {[%clk 0:00:59]} 20. Nxd5 {[%clk 0:01:31]}  Nxd5 {[%clk 0:00:59]} 21. Qxd5 {[%clk 0:01:30]}  Bxa4 {[%clk 0:00:58]} 22. Qxd8 {[%clk 0:01:30]}  Rexd8 {[%clk 0:00:41]} 23. Rxa4 {[%clk 0:01:25]}  Bf6 {[%clk 0:00:25]} 24. Rb4 {[%clk 0:01:14]}  cxd3 {[%clk 0:00:23]} 25. c3 {[%clk 0:01:15]}  Rd7 {[%clk 0:00:20]} 26. Ree4 {[%clk 0:01:12]}  Rc6 {[%clk 0:00:15]} 27. f4 {[%clk 0:01:11]}  Bd8 {[%clk 0:00:14]} 28. Rbd4 {[%clk 0:00:38]}  Rxd4 {[%clk 0:00:12]} 29. Rxd4 {[%clk 0:00:39]}  Bxa5 {[%clk 0:00:13]} 30. Rxd3 {[%clk 0:00:39]}  Kf8 {[%clk 0:00:10]} 31. Kf1 {[%clk 0:00:35]}  Ke7 {[%clk 0:00:10]} 32. g4 {[%clk 0:00:31]}  Rd6 {[%clk 0:00:09]} 33. Re3+ {[%clk 0:00:30]}  Re6 {[%clk 0:00:09]} 34. Ke2 {[%clk 0:00:29]}  Bb6 {[%clk 0:00:08]} 35. Rxe6+ {[%clk 0:00:29]}  Kxe6 {[%clk 0:00:09]} 36. Kd3 {[%clk 0:00:30]}  f5 {[%clk 0:00:08]} 37. Be3 {[%clk 0:00:28]}  Bxe3 {[%clk 0:00:08]} 38. Kxe3 {[%clk 0:00:29]}  fxg4 {[%clk 0:00:08]} 39. hxg4 {[%clk 0:00:29]}  g6 {[%clk 0:00:08]} 40. Kf3 {[%clk 0:00:27]}  Kf6 {[%clk 0:00:08]} 41. b4 {[%clk 0:00:24]}  b5 {[%clk 0:00:08]} 42. Ke4 {[%clk 0:00:22]}  h5 {[%clk 0:00:07]} 43. Kf3 {[%clk 0:00:23]}  Ke7 {[%clk 0:00:03]} 44. Kg3 {[%clk 0:00:20]}  Kf6 {[%clk 0:00:03]} 45. Kh4 {[%clk 0:00:21]}  hxg4 {[%clk 0:00:02]} 46. Kxg4 {[%clk 0:00:22]}  Kf7 {[%clk 0:00:02]} 47. Kg5 {[%clk 0:00:22]}  Kg7 {[%clk 0:00:03]} 48. Kg4 {[%clk 0:00:12]}  Kf6 {[%clk 0:00:03]} 49. Kf3 {[%clk 0:00:12]}  Ke6 {[%clk 0:00:03]} 50. Ke3 {[%clk 0:00:11]}  Kf5 {[%clk 0:00:03]} 51. Kf3 {[%clk 0:00:11]}  Ke6 {[%clk 0:00:04]} 52. Ke4 {[%clk 0:00:12]}  Kf6 {[%clk 0:00:04]} 53. Ke3 {[%clk 0:00:09]}  Kf5 {[%clk 0:00:04]} 54. Kf3 {[%clk 0:00:09]}  Kf6 {[%clk 0:00:05]} 55. Kg4 {[%clk 0:00:10]}  Ke6 {[%clk 0:00:05]} 56. Kg5 {[%clk 0:00:11]}  Kf7 {[%clk 0:00:05]} 57. f5 {[%clk 0:00:11]}  gxf5 {[%clk 0:00:06]} 58. Kxf5 {[%clk 0:00:12]}  Ke7 {[%clk 0:00:07]} 59. Ke5 {[%clk 0:00:13]}  Kd7 {[%clk 0:00:07]} 60. Kd5 {[%clk 0:00:14]}  Kc7 {[%clk 0:00:08]} 61. Kc5 {[%clk 0:00:15]}  Kb7 {[%clk 0:00:08]} 62. c4 {[%clk 0:00:15]}  bxc4 {[%clk 0:00:09]} 63. Kxc4 {[%clk 0:00:15]}  Kb6 {[%clk 0:00:09]} 64. Kb3 {[%clk 0:00:16]}  Kb5 {[%clk 0:00:10]} 65. Ka3 {[%clk 0:00:16]}  a5 {[%clk 0:00:11]} 66. bxa5 {[%clk 0:00:17]}  Kxa5 {[%clk 0:00:12]} 1/2-1/2


[Site "https://www.chess.com"]

[Event "Titled Tuesday Blitz June 6 Early 2023"]
[White "Hambleton, Aman"]
[Black "Manukyan, Sargis V."]
[WhiteFideId "2606577"]
[BlackFideId "13303465"]
[WhiteElo "2511"]
[BlackElo "2236"]
[Result "0-1"]
[Round "11"]
[TimeControl "180+2"]
[Date "2023.06.06"]
[WhiteClock "0:00:03"]
[BlackClock "0:00:25"]
[Board "26"]

1. d4 {[%clk 0:03:00]}  Nf6 {[%clk 0:02:59]} 2. Bf4 {[%clk 0:02:59]}  c5 {[%clk 0:02:56]} 3. e3 {[%clk 0:02:53]}  b6 {[%clk 0:02:56]} 4. c3 {[%clk 0:02:49]}  Bb7 {[%clk 0:02:56]} 5. h3 {[%clk 0:02:46]}  d6 {[%clk 0:02:56]} 6. Nf3 {[%clk 0:02:45]}  g6 {[%clk 0:02:57]} 7. Bd3 {[%clk 0:02:44]}  Bg7 {[%clk 0:02:57]} 8. Nbd2 {[%clk 0:02:41]}  Nbd7 {[%clk 0:02:55]} 9. O-O {[%clk 0:02:37]}  O-O {[%clk 0:02:55]} 10. Bh2 {[%clk 0:02:28]}  a6 {[%clk 0:02:55]} 11. a4 {[%clk 0:02:28]}  Rc8 {[%clk 0:02:54]} 12. Qe2 {[%clk 0:02:28]}  Nb8 {[%clk 0:02:46]} 13. Rfe1 {[%clk 0:02:20]}  Rc7 {[%clk 0:02:37]} 14. e4 {[%clk 0:01:56]}  cxd4 {[%clk 0:02:34]} 15. cxd4 {[%clk 0:01:57]}  Qd7 {[%clk 0:02:19]} 16. e5 {[%clk 0:01:02]}  Nd5 {[%clk 0:02:17]} 17. exd6 {[%clk 0:01:03]}  exd6 {[%clk 0:02:16]} 18. Nc4 {[%clk 0:01:03]}  Rc6 {[%clk 0:01:54]} 19. Be4 {[%clk 0:00:30]}  Re8 {[%clk 0:01:54]} 20. Qd3 {[%clk 0:00:18]}  Rxe4 {[%clk 0:01:33]} 21. Qxe4 {[%clk 0:00:14]}  Rxc4 {[%clk 0:01:30]} 22. Qe8+ {[%clk 0:00:09]}  Bf8 {[%clk 0:01:30]} 23. Qxd7 {[%clk 0:00:02]}  Nxd7 {[%clk 0:01:30]} 24. b3 {[%clk 0:00:02]}  Rc8 {[%clk 0:01:21]} 25. Nd2 {[%clk 0:00:03]}  b5 {[%clk 0:01:10]} 26. axb5 {[%clk 0:00:03]}  axb5 {[%clk 0:01:11]} 27. Ra7 {[%clk 0:00:03]}  Rb8 {[%clk 0:01:11]} 28. Ne4 {[%clk 0:00:03]}  N7f6 {[%clk 0:01:00]} 29. Nxd6 {[%clk 0:00:01]}  Bxd6 {[%clk 0:00:54]} 30. Bxd6 {[%clk 0:00:02]}  Rd8 {[%clk 0:00:54]} 31. Be7 {[%clk 0:00:02]}  Nxe7 {[%clk 0:00:52]} 32. Rxe7 {[%clk 0:00:03]}  Bd5 {[%clk 0:00:52]} 33. b4 {[%clk 0:00:03]}  Bc4 {[%clk 0:00:52]} 34. f3 {[%clk 0:00:02]}  Rxd4 {[%clk 0:00:52]} 35. Rec7 {[%clk 0:00:02]}  Rd1+ {[%clk 0:00:51]} 36. Kf2 {[%clk 0:00:02]}  Rb1 {[%clk 0:00:51]} 37. g4 {[%clk 0:00:02]}  g5 {[%clk 0:00:51]} 38. Rab7 {[%clk 0:00:01]}  Rxb4 {[%clk 0:00:49]} 39. h4 {[%clk 0:00:01]}  h6 {[%clk 0:00:49]} 40. hxg5 {[%clk 0:00:01]}  hxg5 {[%clk 0:00:50]} 41. Rc5 {[%clk 0:00:02]}  Nd5 {[%clk 0:00:44]} 42. Rd7 {[%clk 0:00:02]}  Rb2+ {[%clk 0:00:43]} 43. Kg3 {[%clk 0:00:02]}  Rd2 {[%clk 0:00:42]} 44. Rd6 {[%clk 0:00:02]}  Kg7 {[%clk 0:00:42]} 45. Rc7 {[%clk 0:00:01]}  Rd3 {[%clk 0:00:39]} 46. Rc5 {[%clk 0:00:02]}  f6 {[%clk 0:00:37]} 47. Rcc6 {[%clk 0:00:02]}  Nf4 {[%clk 0:00:34]} 48. Rxd3 {[%clk 0:00:02]}  Nxd3 {[%clk 0:00:34]} 49. Rc7+ {[%clk 0:00:03]}  Kg6 {[%clk 0:00:33]} 50. Rb7 {[%clk 0:00:03]}  Nf4 {[%clk 0:00:33]} 51. Kf2 {[%clk 0:00:02]}  Nd3+ {[%clk 0:00:32]} 52. Ke3 {[%clk 0:00:02]}  Ne5 {[%clk 0:00:33]} 53. f4 {[%clk 0:00:02]}  Nxg4+ {[%clk 0:00:33]} 54. Kf3 {[%clk 0:00:03]}  Bd5+ {[%clk 0:00:30]} 55. Kg3 {[%clk 0:00:03]}  Bxb7 {[%clk 0:00:30]} 56. f5+ {[%clk 0:00:03]}  Kxf5 {[%clk 0:00:30]} 57. Kh3 {[%clk 0:00:03]}  Ne5 {[%clk 0:00:29]} 58. Kh2 {[%clk 0:00:03]}  b4 {[%clk 0:00:29]} 59. Kg3 {[%clk 0:00:03]}  b3 {[%clk 0:00:30]} 60. Kh3 {[%clk 0:00:04]}  b2 {[%clk 0:00:30]} 61. Kh2 {[%clk 0:00:04]}  b1=Q {[%clk 0:00:30]} 62. Kg3 {[%clk 0:00:04]}  Qd3+ {[%clk 0:00:29]} 63. Kh2 {[%clk 0:00:04]}  Ng4+ {[%clk 0:00:28]} 64. Kg1 {[%clk 0:00:03]}  Qd1# {[%clk 0:00:25]} 0-1


[Site "https://www.chess.com"]

[Event "Titled Tuesday Blitz June 6 Early 2023"]
[White "splendidkid"]
[Black "Reprintsev, Alexander"]
[BlackFideId "14100541"]
[WhiteElo "2751"]
[BlackElo "2229"]
[Result "1-0"]
[Round "11"]
[TimeControl "180+2"]
[Date "2023.06.06"]
[WhiteClock "0:00:32"]
[BlackClock "0:00:03"]
[Board "30"]

1. d4 {[%clk 0:02:47]}  d5 {[%clk 0:02:59]} 2. c4 {[%clk 0:02:46]}  e5 {[%clk 0:02:59]} 3. dxe5 {[%clk 0:02:44]}  d4 {[%clk 0:02:59]} 4. Nf3 {[%clk 0:02:44]}  Nc6 {[%clk 0:02:59]} 5. g3 {[%clk 0:02:42]}  Nge7 {[%clk 0:02:56]} 6. Bg2 {[%clk 0:02:43]}  Ng6 {[%clk 0:02:56]} 7. O-O {[%clk 0:02:44]}  Ngxe5 {[%clk 0:02:55]} 8. Nxe5 {[%clk 0:02:45]}  Nxe5 {[%clk 0:02:55]} 9. Qa4+ {[%clk 0:02:46]}  Bd7 {[%clk 0:02:53]} 10. Qb3 {[%clk 0:02:45]}  Bc6 {[%clk 0:02:53]} 11. Bxc6+ {[%clk 0:02:42]}  bxc6 {[%clk 0:02:52]} 12. Bf4 {[%clk 0:02:43]}  Ng6 {[%clk 0:02:51]} 13. Qb7 {[%clk 0:02:43]}  Rb8 {[%clk 0:02:33]} 14. Qxc6+ {[%clk 0:02:37]}  Qd7 {[%clk 0:02:33]} 15. Qe4+ {[%clk 0:02:33]}  Be7 {[%clk 0:02:32]} 16. b3 {[%clk 0:02:32]}  Nxf4 {[%clk 0:02:31]} 17. Qxf4 {[%clk 0:02:31]}  d3 {[%clk 0:02:22]} 18. Nc3 {[%clk 0:02:28]}  Bf6 {[%clk 0:02:18]} 19. Qe3+ {[%clk 0:02:08]}  Kf8 {[%clk 0:02:14]} 20. Rac1 {[%clk 0:02:07]}  d2 {[%clk 0:01:36]} 21. Rcd1 {[%clk 0:02:05]}  Re8 {[%clk 0:01:32]} 22. Qc5+ {[%clk 0:02:04]}  Kg8 {[%clk 0:01:28]} 23. Nd5 {[%clk 0:02:01]}  Rxe2 {[%clk 0:01:24]} 24. Qxa7 {[%clk 0:02:00]}  h5 {[%clk 0:01:23]} 25. Qc5 {[%clk 0:01:50]}  Rh6 {[%clk 0:01:17]} 26. Nf4 {[%clk 0:01:24]}  Re5 {[%clk 0:01:10]} 27. Qb4 {[%clk 0:01:23]}  h4 {[%clk 0:00:54]} 28. Rxd2 {[%clk 0:01:16]}  Qg4 {[%clk 0:00:51]} 29. f3 {[%clk 0:01:14]}  Qg5 {[%clk 0:00:49]} 30. Kg2 {[%clk 0:01:05]}  Rf5 {[%clk 0:00:34]} 31. Nh3 {[%clk 0:01:03]}  Qe3 {[%clk 0:00:15]} 32. g4 {[%clk 0:00:53]}  c5 {[%clk 0:00:13]} 33. Qb8+ {[%clk 0:00:47]}  Kh7 {[%clk 0:00:11]} 34. Rff2 {[%clk 0:00:48]}  Re5 {[%clk 0:00:10]} 35. Qb7 {[%clk 0:00:42]}  Qe1 {[%clk 0:00:09]} 36. Qxf7 {[%clk 0:00:39]}  Qb1 {[%clk 0:00:08]} 37. Rde2 {[%clk 0:00:34]}  Rxe2 {[%clk 0:00:07]} 38. Rxe2 {[%clk 0:00:35]}  Bd4 {[%clk 0:00:07]} 39. Qf5+ {[%clk 0:00:35]}  Rg6 {[%clk 0:00:03]} 40. Qxb1 {[%clk 0:00:32]} 1-0


[Site "https://www.chess.com"]

[Event "Titled Tuesday Blitz June 6 Early 2023"]
[White "Atakhan, Abtin"]
[Black "Degenbaev, Aziz"]
[WhiteFideId "22502203"]
[BlackFideId "13802640"]
[WhiteElo "2008"]
[BlackElo "2152"]
[Result "1/2-1/2"]
[Round "11"]
[TimeControl "180+2"]
[Date "2023.06.06"]
[WhiteClock "0:00:02"]
[BlackClock "0:00:02"]
[Board "33"]

1. Nf3 {[%clk 0:03:00]}  Nf6 {[%clk 0:03:00]} 2. c4 {[%clk 0:03:01]}  g6 {[%clk 0:03:00]} 3. Nc3 {[%clk 0:03:01]}  Bg7 {[%clk 0:03:00]} 4. e4 {[%clk 0:03:02]}  d6 {[%clk 0:03:01]} 5. d4 {[%clk 0:03:02]}  O-O {[%clk 0:03:01]} 6. Be2 {[%clk 0:03:03]}  e5 {[%clk 0:03:01]} 7. O-O {[%clk 0:03:04]}  Nc6 {[%clk 0:03:02]} 8. d5 {[%clk 0:03:04]}  Ne7 {[%clk 0:03:02]} 9. Ne1 {[%clk 0:03:05]}  Nd7 {[%clk 0:02:59]} 10. Nd3 {[%clk 0:03:05]}  f5 {[%clk 0:02:59]} 11. f3 {[%clk 0:03:06]}  f4 {[%clk 0:02:59]} 12. b4 {[%clk 0:03:06]}  g5 {[%clk 0:02:38]} 13. a4 {[%clk 0:03:03]}  h5 {[%clk 0:02:37]} 14. c5 {[%clk 0:03:03]}  Nf6 {[%clk 0:02:18]} 15. a5 {[%clk 0:02:59]}  Ng6 {[%clk 0:02:16]} 16. Nf2 {[%clk 0:02:59]}  Kh8 {[%clk 0:02:13]} 17. Kh1 {[%clk 0:02:58]}  Rf7 {[%clk 0:02:09]} 18. c6 {[%clk 0:02:58]}  bxc6 {[%clk 0:02:04]} 19. dxc6 {[%clk 0:02:55]}  a6 {[%clk 0:02:04]} 20. Rg1 {[%clk 0:02:54]}  Qe8 {[%clk 0:01:57]} 21. b5 {[%clk 0:02:49]}  axb5 {[%clk 0:01:55]} 22. Nxb5 {[%clk 0:02:47]}  Qxc6 {[%clk 0:01:45]} 23. Bd2 {[%clk 0:02:41]}  Qe8 {[%clk 0:01:35]} 24. Qc2 {[%clk 0:02:29]}  Qd8 {[%clk 0:01:33]} 25. Qc6 {[%clk 0:02:17]}  Ra6 {[%clk 0:01:29]} 26. Qc4 {[%clk 0:02:17]}  Re7 {[%clk 0:01:21]} 27. Bb4 {[%clk 0:02:13]}  Ra8 {[%clk 0:01:11]} 28. Rac1 {[%clk 0:02:06]}  c5 {[%clk 0:01:09]} 29. Bd2 {[%clk 0:02:01]}  Be6 {[%clk 0:01:09]} 30. Qd3 {[%clk 0:01:59]}  Rd7 {[%clk 0:01:08]} 31. g3 {[%clk 0:01:53]}  Bh6 {[%clk 0:00:48]} 32. gxf4 {[%clk 0:01:52]}  Nxf4 {[%clk 0:00:47]} 33. Bxf4 {[%clk 0:01:52]}  gxf4 {[%clk 0:00:48]} 34. a6 {[%clk 0:01:43]}  Bf8 {[%clk 0:00:44]} 35. a7 {[%clk 0:01:40]}  Rb7 {[%clk 0:00:36]} 36. Qd2 {[%clk 0:01:06]}  c4 {[%clk 0:00:33]} 37. Rb1 {[%clk 0:01:04]}  Qd7 {[%clk 0:00:29]} 38. Qa5 {[%clk 0:01:02]}  d5 {[%clk 0:00:28]} 39. Qa6 {[%clk 0:01:00]}  dxe4 {[%clk 0:00:25]} 40. Rg6 {[%clk 0:00:58]}  exf3 {[%clk 0:00:16]} 41. Bxf3 {[%clk 0:00:56]}  Raxa7 {[%clk 0:00:11]} 42. Nxa7 {[%clk 0:00:39]}  Rxb1+ {[%clk 0:00:10]} 43. Kg2 {[%clk 0:00:40]}  e4 {[%clk 0:00:10]} 44. Bxe4 {[%clk 0:00:37]}  Nxe4 {[%clk 0:00:09]} 45. Rxe6 {[%clk 0:00:33]}  Nxf2 {[%clk 0:00:06]} 46. Qxc4 {[%clk 0:00:27]}  Qg7+ {[%clk 0:00:05]} 47. Kf3 {[%clk 0:00:27]}  Qg4+ {[%clk 0:00:05]} 48. Kxf2 {[%clk 0:00:27]}  Qg1+ {[%clk 0:00:04]} 49. Kf3 {[%clk 0:00:27]}  Rf1+ {[%clk 0:00:05]} 50. Ke4 {[%clk 0:00:27]}  Qg2+ {[%clk 0:00:05]} 51. Kf5 {[%clk 0:00:27]}  Qg4+ {[%clk 0:00:06]} 52. Kf6 {[%clk 0:00:26]}  Bg7+ {[%clk 0:00:06]} 53. Kf7 {[%clk 0:00:26]}  Qf5+ {[%clk 0:00:06]} 54. Ke8 {[%clk 0:00:25]}  Rb1 {[%clk 0:00:06]} 55. Nc6 {[%clk 0:00:24]}  Rb7 {[%clk 0:00:05]} 56. Kd8 {[%clk 0:00:14]}  Qf8+ {[%clk 0:00:03]} 57. Re8 {[%clk 0:00:14]}  Bf6+ {[%clk 0:00:04]} 58. Kc8 {[%clk 0:00:14]}  Qxe8+ {[%clk 0:00:04]} 59. Kxb7 {[%clk 0:00:14]}  Qd7+ {[%clk 0:00:05]} 60. Kb6 {[%clk 0:00:14]}  f3 {[%clk 0:00:06]} 61. Qc5 {[%clk 0:00:10]}  Qf7 {[%clk 0:00:06]} 62. Kb5 {[%clk 0:00:07]}  Qb3+ {[%clk 0:00:04]} 63. Ka6 {[%clk 0:00:06]}  Qf7 {[%clk 0:00:03]} 64. Qf5 {[%clk 0:00:06]}  Qc4+ {[%clk 0:00:02]} 65. Kb7 {[%clk 0:00:06]}  Qf7+ {[%clk 0:00:01]} 66. Ka6 {[%clk 0:00:04]}  Qa2+ {[%clk 0:00:02]} 67. Kb7 {[%clk 0:00:03]}  Qf7+ {[%clk 0:00:02]} 68. Ka6 {[%clk 0:00:02]} 1/2-1/2


[Site "https://www.chess.com"]

[Event "Titled Tuesday Blitz June 6 Early 2023"]
[White "Machidon, Cristi"]
[Black "Koshulyan, Egor A."]
[WhiteFideId "13904590"]
[BlackFideId "24237000"]
[WhiteElo "2355"]
[BlackElo "2216"]
[Result "0-1"]
[Round "11"]
[TimeControl "180+2"]
[Date "2023.06.06"]
[WhiteClock "0:00:34"]
[BlackClock "0:01:21"]
[Board "35"]

1. e4 {[%clk 0:02:56]}  c5 {[%clk 0:02:55]} 2. Nf3 {[%clk 0:02:55]}  Nc6 {[%clk 0:02:55]} 3. Bb5 {[%clk 0:02:55]}  g5 {[%clk 0:02:55]} 4. Bxc6 {[%clk 0:02:44]}  dxc6 {[%clk 0:02:56]} 5. Nxg5 {[%clk 0:02:44]}  Nf6 {[%clk 0:02:56]} 6. d3 {[%clk 0:02:41]}  Rg8 {[%clk 0:02:56]} 7. O-O {[%clk 0:02:33]}  h6 {[%clk 0:02:55]} 8. Nf3 {[%clk 0:02:33]}  Bh3 {[%clk 0:02:56]} 9. Ne1 {[%clk 0:02:34]}  Qd7 {[%clk 0:02:56]} 10. f3 {[%clk 0:02:33]}  O-O-O {[%clk 0:02:40]} 11. Qe2 {[%clk 0:02:33]}  Nh5 {[%clk 0:02:37]} 12. Kh1 {[%clk 0:02:27]}  Be6 {[%clk 0:02:35]} 13. Be3 {[%clk 0:02:21]}  Qd6 {[%clk 0:02:27]} 14. f4 {[%clk 0:02:19]}  Bg4 {[%clk 0:02:26]} 15. Qf2 {[%clk 0:02:18]}  e5 {[%clk 0:02:20]} 16. f5 {[%clk 0:02:14]}  Be7 {[%clk 0:02:17]} 17. h3 {[%clk 0:02:09]}  Be2 {[%clk 0:01:48]} 18. Rg1 {[%clk 0:01:51]}  Ng3+ {[%clk 0:01:48]} 19. Kh2 {[%clk 0:01:52]}  Bh4 {[%clk 0:01:48]} 20. Bxc5 {[%clk 0:01:05]}  Qf6 {[%clk 0:01:47]} 21. Qe3 {[%clk 0:00:55]}  Bg5 {[%clk 0:01:42]} 22. Qxg3 {[%clk 0:00:53]}  Bf4 {[%clk 0:01:41]} 23. Qxf4 {[%clk 0:00:53]}  exf4 {[%clk 0:01:41]} 24. Nc3 {[%clk 0:00:53]}  Qh4 {[%clk 0:01:38]} 25. Nxe2 {[%clk 0:00:51]}  Qf6 {[%clk 0:01:27]} 26. Rb1 {[%clk 0:00:48]}  Qe5 {[%clk 0:01:26]} 27. Bf2 {[%clk 0:00:35]}  f3+ {[%clk 0:01:24]} 28. Bg3 {[%clk 0:00:35]}  Rxg3 {[%clk 0:01:22]} 29. Nxg3 {[%clk 0:00:36]}  f2 {[%clk 0:01:22]} 30. Nf3 {[%clk 0:00:34]}  fxg1=Q+ {[%clk 0:01:22]} 31. Rxg1 {[%clk 0:00:34]}  Qxb2 {[%clk 0:01:21]} 0-1


[Site "https://www.chess.com"]

[Event "Titled Tuesday Blitz June 6 Early 2023"]
[White "Wagner, Dennis"]
[Black "Trifan, Andrei Ioan"]
[WhiteFideId "24650684"]
[BlackFideId "12967068"]
[WhiteElo "2478"]
[BlackElo "2208"]
[Result "0-1"]
[Round "11"]
[TimeControl "180+2"]
[Date "2023.06.06"]
[WhiteClock "0:00:05"]
[BlackClock "0:00:12"]
[Board "37"]

1. e4 {[%clk 0:03:00]}  e5 {[%clk 0:02:58]} 2. Nf3 {[%clk 0:03:00]}  Nc6 {[%clk 0:02:58]} 3. Bb5 {[%clk 0:03:01]}  a6 {[%clk 0:02:58]} 4. Ba4 {[%clk 0:03:02]}  Nf6 {[%clk 0:02:58]} 5. O-O {[%clk 0:03:02]}  Be7 {[%clk 0:02:59]} 6. d3 {[%clk 0:03:02]}  b5 {[%clk 0:02:59]} 7. Bb3 {[%clk 0:03:02]}  d6 {[%clk 0:02:59]} 8. a3 {[%clk 0:03:03]}  Be6 {[%clk 0:02:52]} 9. Nc3 {[%clk 0:02:49]}  d5 {[%clk 0:02:51]} 10. Ng5 {[%clk 0:02:45]}  Qd7 {[%clk 0:02:46]} 11. exd5 {[%clk 0:02:35]}  Nxd5 {[%clk 0:02:42]} 12. Nxe6 {[%clk 0:02:34]}  fxe6 {[%clk 0:02:43]} 13. Qh5+ {[%clk 0:01:41]}  g6 {[%clk 0:02:40]} 14. Qh3 {[%clk 0:01:41]}  O-O-O {[%clk 0:01:32]} 15. Be3 {[%clk 0:01:39]}  Kb7 {[%clk 0:01:20]} 16. Ne4 {[%clk 0:01:35]}  Nd4 {[%clk 0:01:17]} 17. Bxd4 {[%clk 0:01:26]}  exd4 {[%clk 0:01:18]} 18. a4 {[%clk 0:01:23]}  b4 {[%clk 0:01:16]} 19. a5 {[%clk 0:01:23]}  e5 {[%clk 0:01:09]} 20. Bxd5+ {[%clk 0:01:09]}  Qxd5 {[%clk 0:01:09]} 21. Rfe1 {[%clk 0:00:49]}  h5 {[%clk 0:01:03]} 22. Nd2 {[%clk 0:00:47]}  Rhf8 {[%clk 0:00:58]} 23. Nc4 {[%clk 0:00:47]}  Bd6 {[%clk 0:00:57]} 24. Re4 {[%clk 0:00:44]}  Rf4 {[%clk 0:00:53]} 25. Rae1 {[%clk 0:00:43]}  Rxe4 {[%clk 0:00:51]} 26. Rxe4 {[%clk 0:00:43]}  b3 {[%clk 0:00:40]} 27. cxb3 {[%clk 0:00:41]}  Qb5 {[%clk 0:00:40]} 28. Qf3 {[%clk 0:00:40]}  Ka7 {[%clk 0:00:32]} 29. Qd1 {[%clk 0:00:36]}  Rb8 {[%clk 0:00:31]} 30. h4 {[%clk 0:00:17]}  Rb7 {[%clk 0:00:16]} 31. Kh2 {[%clk 0:00:14]}  Qc5 {[%clk 0:00:15]} 32. Qf3 {[%clk 0:00:14]}  Rxb3 {[%clk 0:00:15]} 33. Qg3 {[%clk 0:00:04]}  Qd5 {[%clk 0:00:10]} 34. Qxg6 {[%clk 0:00:04]}  Rxd3 {[%clk 0:00:09]} 35. Nxd6 {[%clk 0:00:04]}  Qxd6 {[%clk 0:00:10]} 36. Qxh5 {[%clk 0:00:03]}  Rd2 {[%clk 0:00:09]} 37. Rxe5 {[%clk 0:00:03]}  Rxb2 {[%clk 0:00:07]} 38. f4 {[%clk 0:00:02]}  d3 {[%clk 0:00:07]} 39. Qd1 {[%clk 0:00:01]}  d2 {[%clk 0:00:07]} 40. h5 {[%clk 0:00:01]}  Rb1 {[%clk 0:00:07]} 41. Qf3 {[%clk 0:00:01]}  d1=Q {[%clk 0:00:08]} 42. Qe3+ {[%clk 0:00:02]}  Q1d4 {[%clk 0:00:08]} 43. h6 {[%clk 0:00:01]}  Qxe3 {[%clk 0:00:08]} 44. Rxe3 {[%clk 0:00:02]}  Qxf4+ {[%clk 0:00:09]} 45. Rg3 {[%clk 0:00:02]}  Rh1+ {[%clk 0:00:09]} 46. Kxh1 {[%clk 0:00:02]}  Qxg3 {[%clk 0:00:10]} 47. h7 {[%clk 0:00:03]}  Qh4+ {[%clk 0:00:11]} 48. Kg1 {[%clk 0:00:03]}  Qxh7 {[%clk 0:00:12]} 49. g4 {[%clk 0:00:04]}  Qe4 {[%clk 0:00:12]} 50. Kh2 {[%clk 0:00:04]}  Qxg4 {[%clk 0:00:12]} 51. Kh1 {[%clk 0:00:05]}  Kb7 {[%clk 0:00:12]} 0-1


[Site "https://www.chess.com"]